[Event "Early-Titled-Tuesday-Blitz-January-16-2024"]
[Site "Chess.com"]
[Date "2024.01.16"]
[Round "6"]
[White "ninguno46"]
[Black "falzehope0"]
[Result "1-0"]
[WhiteElo "2535"]
[BlackElo "2378"]
[TimeControl "180+1"]
[EndTime "9:13:04 PST"]
[Termination "ninguno46 won by resignation"]

1. d4 {[%clk 0:02:52.6]} 1... d6 {[%clk 0:03:00.9]} 2. e4 {[%clk 0:02:50.9]}
2... Nf6 {[%clk 0:03:00.3]} 3. f3 {[%clk 0:02:51.5]} 3... Nbd7 {[%clk
0:02:59.7]} 4. c4 {[%clk 0:02:50.2]} 4... c6 {[%clk 0:02:59.8]} 5. Ne2 {[%clk
0:02:50.6]} 5... e5 {[%clk 0:02:59.8]} 6. Nbc3 {[%clk 0:02:51.1]} 6... Be7
{[%clk 0:02:59.9]} 7. d5 {[%clk 0:02:49.7]} 7... c5 {[%clk 0:02:55.1]} 8. g3
{[%clk 0:02:44.1]} 8... O-O {[%clk 0:02:52.8]} 9. Bg2 {[%clk 0:02:43.5]} 9...
Ne8 {[%clk 0:02:52.7]} 10. O-O {[%clk 0:02:43.9]} 10... g6 {[%clk 0:02:53]} 11.
Bh6 {[%clk 0:02:41.7]} 11... Ng7 {[%clk 0:02:52.9]} 12. Qd2 {[%clk 0:02:42.2]}
12... f5 {[%clk 0:02:52.5]} 13. f4 {[%clk 0:02:41.7]} 13... Bf6 {[%clk
0:02:50.6]} 14. exf5 {[%clk 0:02:39.7]} 14... gxf5 {[%clk 0:02:49.8]} 15. Rae1
{[%clk 0:02:27.9]} 15... e4 {[%clk 0:02:49.7]} 16. g4 {[%clk 0:02:25.7]} 16...
Bh4 {[%clk 0:02:45]} 17. Ng3 {[%clk 0:02:23.4]} 17... Nf6 {[%clk 0:02:31.3]} 18.
Bxg7 {[%clk 0:02:05.2]} 18... Kxg7 {[%clk 0:02:30.9]} 19. gxf5 {[%clk
0:02:03.3]} 19... Kh8 {[%clk 0:02:26.8]} 20. Ncxe4 {[%clk 0:01:54.2]} 20... Nxe4
{[%clk 0:02:19.5]} 21. Nxe4 {[%clk 0:01:41.8]} 21... Bxf5 {[%clk 0:01:57.6]} 22.
Qc3+ {[%clk 0:01:38.3]} 22... Kg8 {[%clk 0:01:53.1]} 23. Re3 {[%clk 0:01:35.5]}
23... Bxe4 {[%clk 0:01:48.4]} 24. Bxe4 {[%clk 0:01:31.9]} 24... Bf6 {[%clk
0:01:48.2]} 25. Rg3+ {[%clk 0:01:29.7]} 25... Kh8 {[%clk 0:01:46.1]} 26. Qd3
{[%clk 0:01:27.4]} 26... Qe7 {[%clk 0:01:44.2]} 27. Rh3 {[%clk 0:01:22.9]} 27...
Rf7 {[%clk 0:01:43.2]} 28. Kh1 {[%clk 0:01:19.6]} 28... Re8 {[%clk 0:01:33.3]}
29. Bf5 {[%clk 0:01:18.9]} 29... Bxb2 {[%clk 0:01:28.7]} 30. Be6 {[%clk
0:01:17.8]} 30... Rg7 {[%clk 0:01:27.9]} 31. Rg3 {[%clk 0:01:13.4]} 31... Bd4
{[%clk 0:01:25.5]} 32. Rff3 {[%clk 0:01:12.9]} 32... Rf8 {[%clk 0:01:20.8]} 33.
Kg2 {[%clk 0:01:09.9]} 33... Qf6 {[%clk 0:01:20.5]} 34. a4 {[%clk 0:01:00.1]}
34... b6 {[%clk 0:01:19.6]} 35. Qe4 {[%clk 0:00:58.5]} 35... Qh6 {[%clk
0:01:16]} 36. Rxg7 {[%clk 0:00:54.9]} 36... Qxg7+ {[%clk 0:01:11.6]} 37. Rg3
{[%clk 0:00:54.9]} 37... Qf6 {[%clk 0:01:04.7]} 38. Qf3 {[%clk 0:00:51.9]} 38...
Re8 {[%clk 0:00:59.7]} 39. Qg4 {[%clk 0:00:51.3]} 39... h6 {[%clk 0:00:53]} 40.
Qh5 {[%clk 0:00:43.9]} 40... Re7 {[%clk 0:00:36.3]} 41. h4 {[%clk 0:00:16.9]}
41... Rg7 {[%clk 0:00:28.3]} 42. Qe8+ {[%clk 0:00:13.9]} 42... Kh7 {[%clk
0:00:27.2]} 43. Bg8+ {[%clk 0:00:14]} 43... Kh8 {[%clk 0:00:23.1]} 44. Be6+
{[%clk 0:00:10.7]} 44... Kh7 {[%clk 0:00:23.2]} 45. Rxg7+ {[%clk 0:00:10.1]}
45... Qxg7+ {[%clk 0:00:23]} 46. Kf3 {[%clk 0:00:10.1]} 46... Bb2 {[%clk
0:00:19.2]} 47. h5 {[%clk 0:00:09.4]} 47... Qc3+ {[%clk 0:00:18.5]} 48. Kg4
{[%clk 0:00:09.5]} 48... Kg7 {[%clk 0:00:10.8]} 49. Qg6+ {[%clk 0:00:08.6]}
49... Kf8 {[%clk 0:00:10.9]} 50. Qxh6+ {[%clk 0:00:08.9]} 50... Qg7+ {[%clk
0:00:10.4]} 51. Qg6 {[%clk 0:00:08.3]} 51... Qxg6+ {[%clk 0:00:10.4]} 52. hxg6
{[%clk 0:00:08.5]} 52... Kg7 {[%clk 0:00:11.3]} 53. f5 {[%clk 0:00:08.9]} 53...
Kf6 {[%clk 0:00:11.5]} 54. Kh5 {[%clk 0:00:08.6]} 54... Bc1 {[%clk 0:00:11.2]}
55. Kg4 {[%clk 0:00:08.1]} 55... Bd2 {[%clk 0:00:11.4]} 56. Kf3 {[%clk 0:00:09]}
56... Bc1 {[%clk 0:00:11.8]} 57. Ke2 {[%clk 0:00:09.9]} 57... Bg5 {[%clk
0:00:10.6]} 58. Kd3 {[%clk 0:00:09.9]} 58... Bh4 {[%clk 0:00:10.5]} 59. Kc3
{[%clk 0:00:08.5]} 59... Be1+ {[%clk 0:00:09.9]} 60. Kb3 {[%clk 0:00:09.4]}
60... Bd2 {[%clk 0:00:10]} 61. Kc2 {[%clk 0:00:09.3]} 61... Ba5 {[%clk
0:00:09.3]} 62. Kd3 {[%clk 0:00:09.3]} 62... Be1 {[%clk 0:00:08.8]} 63. Ke4
{[%clk 0:00:10.2]} 63... Bd2 {[%clk 0:00:08.9]} 64. Kf3 {[%clk 0:00:11.1]} 64...
Bc1 {[%clk 0:00:08.9]} 65. Ke2 {[%clk 0:00:12]} 65... Bg5 {[%clk 0:00:08.5]} 66.
a5 {[%clk 0:00:11.9]} 66... bxa5 {[%clk 0:00:05.8]} 67. Kd3 {[%clk 0:00:12.3]}
67... a4 {[%clk 0:00:06.1]} 68. Kc2 {[%clk 0:00:13.2]} 68... Bh4 {[%clk
0:00:05.9]} 69. Kb2 {[%clk 0:00:13.7]} 69... Be1 {[%clk 0:00:05.3]} 70. Ka3
{[%clk 0:00:14.1]} 70... a5 {[%clk 0:00:05.1]} 71. Kxa4 {[%clk 0:00:15]} 71...
Bd2 {[%clk 0:00:05.1]} 72. Kb5 {[%clk 0:00:15.1]} 72... Be1 {[%clk 0:00:04.1]}
73. Bd7 {[%clk 0:00:15.6]} 73... Bd2 {[%clk 0:00:03.4]} 74. Kc6 {[%clk
0:00:15.6]} 74... Bf4 {[%clk 0:00:01.9]} 75. Kb6 {[%clk 0:00:15.6]} 75... Bd2
{[%clk 0:00:01.1]} 76. Be6 {[%clk 0:00:14.6]} 76... Bc3 {[%clk 0:00:02]} 77. Bd7
{[%clk 0:00:13.2]} 77... Kg7 {[%clk 0:00:02.9]} 78. Kb5 {[%clk 0:00:12.7]} 78...
Bb4 {[%clk 0:00:02.9]} 79. Ka6 {[%clk 0:00:12.8]} 79... Bc3 {[%clk 0:00:03.8]}
80. Kb7 {[%clk 0:00:13.2]} 80... Bb4 {[%clk 0:00:04.7]} 81. Kc8 {[%clk
0:00:13.9]} 81... Bc3 {[%clk 0:00:05.6]} 82. Kd8 {[%clk 0:00:14.7]} 82... Kf6
{[%clk 0:00:05.8]} 83. Ke8 {[%clk 0:00:14.7]} 83... Kg7 {[%clk 0:00:05.3]} 84.
Ke7 {[%clk 0:00:14.5]} 84... Be5 {[%clk 0:00:05.4]} 85. f6+ {[%clk 0:00:13.7]}
85... Bxf6+ {[%clk 0:00:05.4]} 86. Kxd6 {[%clk 0:00:14.6]} 86... Bd4 {[%clk
0:00:05.2]} 87. Be8 {[%clk 0:00:14.5]} 87... Kf6 {[%clk 0:00:05.6]} 88. Kc7
{[%clk 0:00:14.5]} 88... Ke7 {[%clk 0:00:05.5]} 89. d6+ {[%clk 0:00:14.7]} 89...
Kxe8 {[%clk 0:00:05.5]} 90. d7+ {[%clk 0:00:15.4]} 90... Kf8 {[%clk 0:00:05.2]}
91. d8=Q+ {[%clk 0:00:15.9]} 91... Kg7 {[%clk 0:00:06.1]} 92. Kc6 {[%clk
0:00:15.3]} 92... Kxg6 {[%clk 0:00:05.7]} 93. Qxa5 {[%clk 0:00:15.9]} 93... Kf5
{[%clk 0:00:05.4]} 94. Qe1 {[%clk 0:00:16.5]} 94... Kf6 {[%clk 0:00:05.6]} 95.
Kd5 {[%clk 0:00:17.4]} 95... Kf5 {[%clk 0:00:06.1]} 96. Qf1+ {[%clk 0:00:17.9]}
96... Kg6 {[%clk 0:00:05.5]} 97. Ke6 {[%clk 0:00:18.5]} 97... Kg5 {[%clk
0:00:06]} 98. Qf5+ {[%clk 0:00:18.7]} 98... Kh4 {[%clk 0:00:06]} 99. Qe4+ {[%clk
0:00:19.2]} 99... Kg3 {[%clk 0:00:06.6]} 100. Kd5 {[%clk 0:00:19.4]} 100... Kf2
{[%clk 0:00:07]} 101. Qxd4+ {[%clk 0:00:19.9]} 101... cxd4 {[%clk 0:00:06.8]}
102. Kxd4 {[%clk 0:00:20.8]} 102... Kf3 {[%clk 0:00:07.2]} 103. c5 {[%clk
0:00:21.7]} 103... Kf4 {[%clk 0:00:08]} 104. c6 {[%clk 0:00:22.6]} 104... Kf5
{[%clk 0:00:08.9]} 105. c7 {[%clk 0:00:23.5]} 105... Kf6 {[%clk 0:00:09.8]} 106.
c8=Q {[%clk 0:00:24.4]} 106... Ke7 {[%clk 0:00:10.7]} 107. Qg4 {[%clk
0:00:24.2]} 107... Kd6 {[%clk 0:00:10.9]} 108. Qg6+ {[%clk 0:00:24.2]} 108...
Ke7 {[%clk 0:00:11.4]} 109. Kd5 {[%clk 0:00:25.1]} 109... Kf8 {[%clk 0:00:11]}
110. Qh7 {[%clk 0:00:24.9]} 110... Ke8 {[%clk 0:00:11.3]} 111. Ke6 {[%clk
0:00:25.5]} 1-0

[Event "Early-Titled-Tuesday-Blitz-January-16-2024"]
[Site "Chess.com"]
[Date "2024.01.16"]
[Round "6"]
[White "bubeliang"]
[Black "crazy_but_lazy"]
[Result "1/2-1/2"]
[WhiteElo "2764"]
[BlackElo "2596"]
[TimeControl "180+1"]
[EndTime "9:13:15 PST"]
[Termination "Game drawn by agreement"]

1. b3 {[%clk 0:03:00.9]} 1... d5 {[%clk 0:02:59.4]} 2. Bb2 {[%clk 0:02:58.5]}
2... Bg4 {[%clk 0:02:59.9]} 3. g3 {[%clk 0:02:56.4]} 3... c6 {[%clk 0:02:59.2]}
4. Bg2 {[%clk 0:02:56.3]} 4... Nd7 {[%clk 0:02:59.1]} 5. f4 {[%clk 0:02:56]}
5... e6 {[%clk 0:02:47.8]} 6. Nf3 {[%clk 0:02:54.9]} 6... Ngf6 {[%clk
0:02:43.2]} 7. O-O {[%clk 0:02:54.3]} 7... Be7 {[%clk 0:02:37.2]} 8. Qe1 {[%clk
0:02:50.5]} 8... O-O {[%clk 0:02:36.6]} 9. d3 {[%clk 0:02:50.5]} 9... Qb6+
{[%clk 0:02:34.6]} 10. Kh1 {[%clk 0:02:49.7]} 10... Bb4 {[%clk 0:02:07.1]} 11.
Nbd2 {[%clk 0:02:44.5]} 11... Qe3 {[%clk 0:01:44]} 12. c3 {[%clk 0:02:42.4]}
12... Bd6 {[%clk 0:01:41.6]} 13. Qf2 {[%clk 0:02:40.4]} 13... Qxf2 {[%clk
0:01:40.6]} 14. Rxf2 {[%clk 0:02:41.3]} 14... e5 {[%clk 0:01:40.2]} 15. fxe5
{[%clk 0:02:27.2]} 15... Nxe5 {[%clk 0:01:39.3]} 16. Nxe5 {[%clk 0:02:27.5]}
16... Bxe5 {[%clk 0:01:40.2]} 17. d4 {[%clk 0:02:28.4]} 17... Bd6 {[%clk
0:01:37.3]} 18. e4 {[%clk 0:02:28.9]} 18... dxe4 {[%clk 0:01:37.5]} 19. Rxf6
{[%clk 0:02:06.4]} 19... gxf6 {[%clk 0:01:35.4]} 20. Nxe4 {[%clk 0:02:07.3]}
20... Be7 {[%clk 0:01:24.4]} 21. Rf1 {[%clk 0:02:05.6]} 21... Bh5 {[%clk
0:01:22.7]} 22. Rxf6 {[%clk 0:01:54.9]} 22... Bg6 {[%clk 0:01:22.6]} 23. Rf4
{[%clk 0:01:50.6]} 23... Rfe8 {[%clk 0:01:19.4]} 24. c4 {[%clk 0:01:25.1]} 24...
f5 {[%clk 0:01:08.1]} 25. Nc3 {[%clk 0:01:23.9]} 25... Bg5 {[%clk 0:00:40.4]}
26. Rf1 {[%clk 0:01:21.1]} 26... Bf6 {[%clk 0:00:40.5]} 27. d5 {[%clk
0:01:19.1]} 27... cxd5 {[%clk 0:00:31.2]} 28. Bxd5+ {[%clk 0:01:17.4]} 28... Kg7
{[%clk 0:00:31.7]} 29. Bxb7 {[%clk 0:00:58.8]} 29... Rad8 {[%clk 0:00:32]} 30.
Bd5 {[%clk 0:00:58.9]} 30... Re3 {[%clk 0:00:14.4]} 31. Nd1 {[%clk 0:00:49.7]}
31... Re2 {[%clk 0:00:15]} 32. Bxf6+ {[%clk 0:00:40.8]} 32... Kxf6 {[%clk
0:00:15.9]} 33. Nc3 {[%clk 0:00:41.4]} 33... Rc2 {[%clk 0:00:16.6]} 34. Ne4+
{[%clk 0:00:39.8]} 34... Kg7 {[%clk 0:00:15]} 35. Nc5 {[%clk 0:00:38.1]} 35...
Re8 {[%clk 0:00:15.1]} 36. Ne6+ {[%clk 0:00:32.8]} 36... Kf6 {[%clk 0:00:15.7]}
37. Nf4 {[%clk 0:00:33.7]} 37... Rxa2 {[%clk 0:00:16]} 38. c5 {[%clk 0:00:34.2]}
38... Rc2 {[%clk 0:00:15.6]} 39. Bc4 {[%clk 0:00:33]} 39... Bf7 {[%clk
0:00:14.7]} 40. Bxf7 {[%clk 0:00:19.3]} 40... Kxf7 {[%clk 0:00:15.6]} 41. b4
{[%clk 0:00:19.2]} 41... Re3 {[%clk 0:00:11.5]} 42. Ra1 {[%clk 0:00:10.4]} 42...
Rb3 {[%clk 0:00:08.5]} 43. Rxa7+ {[%clk 0:00:09.7]} 43... Kf6 {[%clk 0:00:09.1]}
44. Ra6+ {[%clk 0:00:10]} 44... Ke5 {[%clk 0:00:07.2]} 45. Re6+ {[%clk 0:00:10]}
45... Kd4 {[%clk 0:00:08]} 46. Ne2+ {[%clk 0:00:06.8]} 46... Kd5 {[%clk
0:00:07.3]} 47. Re8 {[%clk 0:00:06.8]} 47... Rb1+ {[%clk 0:00:05.6]} 48. Kg2
{[%clk 0:00:07]} 48... Re1 {[%clk 0:00:04]} 49. Kf2 {[%clk 0:00:06.5]} 49... Rh1
{[%clk 0:00:04.5]} 50. Kf3 {[%clk 0:00:05.8]} 50... Rxh2 {[%clk 0:00:04.1]} 51.
Nf4+ {[%clk 0:00:04.9]} 51... Kc4 {[%clk 0:00:04.8]} 52. g4 {[%clk 0:00:02.5]}
52... fxg4+ {[%clk 0:00:04.6]} 53. Kxg4 {[%clk 0:00:02.7]} 53... Kxb4 {[%clk
0:00:04.7]} 54. Nd3+ {[%clk 0:00:01.5]} 54... Kc3 {[%clk 0:00:05]} 55. Nf4
{[%clk 0:00:01.6]} 55... Kb2 {[%clk 0:00:04.5]} 56. Rb8+ {[%clk 0:00:01.5]}
56... Kc1 {[%clk 0:00:04.3]} 57. Nd3+ {[%clk 0:00:01.5]} 57... Kd1 {[%clk
0:00:05]} 58. Ne5 {[%clk 0:00:02]} 58... Rxc5 {[%clk 0:00:03.9]} 59. Nf3 {[%clk
0:00:02.7]} 59... Rc4+ {[%clk 0:00:03.8]} 60. Kg3 {[%clk 0:00:03.1]} 60... Rhc2
{[%clk 0:00:03]} 61. Re8 {[%clk 0:00:03.4]} 61... Re2 {[%clk 0:00:02.9]} 62. Ra8
{[%clk 0:00:03.2]} 62... Kc1 {[%clk 0:00:02.8]} 63. Ra1+ {[%clk 0:00:03.3]}
63... Kb2 {[%clk 0:00:03.2]} 64. Ra7 {[%clk 0:00:04]} 64... h5 {[%clk
0:00:02.6]} 65. Ra5 {[%clk 0:00:04.3]} 65... h4+ {[%clk 0:00:02.3]} 66. Nxh4
{[%clk 0:00:04.7]} 66... Re3+ {[%clk 0:00:02.6]} 67. Nf3 {[%clk 0:00:05.3]}
67... Rcc3 {[%clk 0:00:03.2]} 68. Rf5 {[%clk 0:00:06]} 68... Red3 {[%clk
0:00:03.4]} 69. Kg2 {[%clk 0:00:05.4]} 69... Rd8 {[%clk 0:00:03.2]} 70. Rb5+
{[%clk 0:00:05.2]} 70... Ka3 {[%clk 0:00:03.4]} 71. Rf5 {[%clk 0:00:04.7]} 71...
Rg8+ {[%clk 0:00:03.8]} 72. Kf2 {[%clk 0:00:05.1]} 72... Rb8 {[%clk 0:00:04.6]}
73. Kg3 {[%clk 0:00:03.7]} 73... Rh8 {[%clk 0:00:04.5]} 74. Kg4 {[%clk
0:00:03.9]} 74... Rc4+ {[%clk 0:00:04.3]} 75. Kg3 {[%clk 0:00:04]} 75... Rg8+
{[%clk 0:00:05]} 76. Kf2 {[%clk 0:00:04.1]} 76... Rc2+ {[%clk 0:00:05.8]} 77.
Ke3 {[%clk 0:00:04.5]} 77... Re8+ {[%clk 0:00:06.2]} 78. Kf4 {[%clk 0:00:04.8]}
78... Rce2 {[%clk 0:00:06.3]} 79. Kg3 {[%clk 0:00:04]} 79... Rg8+ {[%clk
0:00:06.1]} 80. Kf4 {[%clk 0:00:04.1]} 80... Kb4 {[%clk 0:00:06]} 81. Rf7 {[%clk
0:00:04.1]} 81... Rge8 {[%clk 0:00:06]} 82. Rb7+ {[%clk 0:00:04.2]} 82... Kc5
{[%clk 0:00:05.8]} 83. Rc7+ {[%clk 0:00:04.4]} 83... Kd6 {[%clk 0:00:06.5]} 84.
Rh7 {[%clk 0:00:04.7]} 84... R8e4+ {[%clk 0:00:05.9]} 85. Kg3 {[%clk 0:00:04.8]}
85... Re8 {[%clk 0:00:06.1]} 86. Rh6+ {[%clk 0:00:05.1]} 86... Kd5 {[%clk
0:00:06.7]} 87. Rh5+ {[%clk 0:00:05.6]} 87... Kc4 {[%clk 0:00:06.1]} 88. Rh4+
{[%clk 0:00:05.5]} 88... Kd3 {[%clk 0:00:06]} 89. Ra4 {[%clk 0:00:05.5]} 89...
Kc2 {[%clk 0:00:05.2]} 90. Nd4+ {[%clk 0:00:05.3]} 90... Kd3 {[%clk 0:00:05.6]}
91. Nxe2 {[%clk 0:00:05.3]} 91... Kxe2 {[%clk 0:00:06.2]} 92. Ra1 {[%clk
0:00:04.6]} 92... Re3+ {[%clk 0:00:06.3]} 93. Kf4 {[%clk 0:00:04.7]} 93... Rf3+
{[%clk 0:00:06.6]} 94. Kg4 {[%clk 0:00:05.3]} 94... Re3 {[%clk 0:00:06.9]} 95.
Kg5 {[%clk 0:00:05.2]} 95... Rf3 {[%clk 0:00:06.5]} 96. Kh5 {[%clk 0:00:05.6]}
96... Re3 {[%clk 0:00:07]} 97. Kg4 {[%clk 0:00:06.2]} 97... Rd3 {[%clk
0:00:07.5]} 98. Ra2+ {[%clk 0:00:06]} 98... Ke3 {[%clk 0:00:07.4]} 99. Ra8
{[%clk 0:00:06.9]} 99... Rd4+ {[%clk 0:00:07.6]} 100. Kg3 {[%clk 0:00:06.9]}
100... Rd7 {[%clk 0:00:08.1]} 101. Re8+ {[%clk 0:00:07]} 101... Kd4 {[%clk
0:00:08.2]} 102. Kf4 {[%clk 0:00:07.9]} 102... Rf7+ {[%clk 0:00:08]} 103. Kg5
{[%clk 0:00:06.2]} 1/2-1/2

[Event "Early-Titled-Tuesday-Blitz-January-16-2024"]
[Site "Chess.com"]
[Date "2024.01.16"]
[Round "6"]
[White "vladislavkovalev"]
[Black "albi1999"]
[Result "1-0"]
[WhiteElo "2873"]
[BlackElo "2618"]
[TimeControl "180+1"]
[EndTime "9:13:48 PST"]
[Termination "vladislavkovalev won by resignation"]

1. e4 {[%clk 0:03:00.9]} 1... c5 {[%clk 0:02:59.8]} 2. Nf3 {[%clk 0:03:01]} 2...
a6 {[%clk 0:02:59.7]} 3. c4 {[%clk 0:03:00.8]} 3... Nc6 {[%clk 0:02:59.7]} 4.
Nc3 {[%clk 0:03:01.4]} 4... e5 {[%clk 0:02:59.5]} 5. d3 {[%clk 0:02:59.9]} 5...
d6 {[%clk 0:02:59.5]} 6. Be2 {[%clk 0:02:59.4]} 6... g6 {[%clk 0:02:59.8]} 7.
O-O {[%clk 0:02:57.4]} 7... Bg7 {[%clk 0:02:59.4]} 8. a3 {[%clk 0:02:56.7]} 8...
Nge7 {[%clk 0:02:56.4]} 9. b4 {[%clk 0:02:57.2]} 9... cxb4 {[%clk 0:02:35.5]}
10. axb4 {[%clk 0:02:58.1]} 10... Nxb4 {[%clk 0:02:36.1]} 11. Ba3 {[%clk
0:02:58.5]} 11... Nbc6 {[%clk 0:02:28.7]} 12. Nd5 {[%clk 0:02:59]} 12... O-O
{[%clk 0:02:16.9]} 13. h3 {[%clk 0:02:55.3]} 13... Rb8 {[%clk 0:02:10.6]} 14.
Qd2 {[%clk 0:02:24]} 14... b5 {[%clk 0:02:03.9]} 15. Rfc1 {[%clk 0:02:19.8]}
15... bxc4 {[%clk 0:01:56.7]} 16. dxc4 {[%clk 0:02:15.1]} 16... Nxd5 {[%clk
0:01:27.3]} 17. Qxd5 {[%clk 0:01:58.9]} 17... Nb4 {[%clk 0:01:26.9]} 18. Qd2
{[%clk 0:01:31.3]} 18... a5 {[%clk 0:01:26.9]} 19. c5 {[%clk 0:01:00]} 19...
dxc5 {[%clk 0:01:07.8]} 20. Qxd8 {[%clk 0:01:00.9]} 20... Rxd8 {[%clk
0:01:08.2]} 21. Rxc5 {[%clk 0:01:01.1]} 21... Bb7 {[%clk 0:01:07.5]} 22. Nxe5
{[%clk 0:00:41.1]} 22... Bxe4 {[%clk 0:01:01]} 23. Rxa5 {[%clk 0:00:35.4]} 23...
Nc2 {[%clk 0:00:46.9]} 24. Ra2 {[%clk 0:00:35.4]} 24... Rb1+ {[%clk 0:00:30.2]}
25. Kh2 {[%clk 0:00:35.1]} 25... Nxa3 {[%clk 0:00:11.8]} 26. R2xa3 {[%clk
0:00:35]} 26... Rb2 {[%clk 0:00:11.5]} 27. Re3 {[%clk 0:00:35]} 27... Bd5 {[%clk
0:00:08.7]} 28. Nd3 {[%clk 0:00:09]} 28... Rd2 {[%clk 0:00:07.1]} 29. Nf4 {[%clk
0:00:09.1]} 29... Bc6 {[%clk 0:00:04]} 30. Bf3 {[%clk 0:00:05.2]} 30... Bxf3
{[%clk 0:00:03.8]} 31. Rxf3 {[%clk 0:00:06.1]} 31... Bf8 {[%clk 0:00:03.8]} 32.
g3 {[%clk 0:00:05.4]} 32... Bd6 {[%clk 0:00:04]} 33. Ng2 {[%clk 0:00:02.7]}
33... Kg7 {[%clk 0:00:03.4]} 34. Ne3 {[%clk 0:00:02.7]} 34... Rd3 {[%clk
0:00:02.9]} 35. Kg2 {[%clk 0:00:03]} 35... h5 {[%clk 0:00:02.7]} 36. h4 {[%clk
0:00:03.5]} 36... Be7 {[%clk 0:00:02.9]} 37. Nc4 {[%clk 0:00:03.4]} 37... Rxf3
{[%clk 0:00:02.7]} 38. Kxf3 {[%clk 0:00:04.3]} 38... Bf6 {[%clk 0:00:03]} 39.
Ne3 {[%clk 0:00:04.8]} 39... Rd3 {[%clk 0:00:03.3]} 40. Rd5 {[%clk 0:00:04.7]}
40... Rxd5 {[%clk 0:00:03.2]} 41. Nxd5 {[%clk 0:00:05.6]} 41... Bd4 {[%clk
0:00:03.5]} 42. Nb4 {[%clk 0:00:05.3]} 42... f5 {[%clk 0:00:03.8]} 43. Nc2
{[%clk 0:00:05.2]} 43... Bc5 {[%clk 0:00:04.3]} 44. Kg2 {[%clk 0:00:04.6]} 44...
Kf6 {[%clk 0:00:04.8]} 45. Ne1 {[%clk 0:00:05.5]} 45... Ke6 {[%clk 0:00:04.3]}
46. Nd3 {[%clk 0:00:06.1]} 46... Bd6 {[%clk 0:00:04.9]} 47. Kf3 {[%clk
0:00:06.7]} 47... Kf6 {[%clk 0:00:04.6]} 48. Nf4 {[%clk 0:00:05.4]} 48... Bb8
{[%clk 0:00:03.8]} 49. Nd5+ {[%clk 0:00:05.3]} 49... Kf7 {[%clk 0:00:03.3]} 50.
Nb4 {[%clk 0:00:04.3]} 50... Ba7 {[%clk 0:00:03.3]} 51. Nc6 {[%clk 0:00:04.6]}
51... Bc5 {[%clk 0:00:03.7]} 52. Ne5+ {[%clk 0:00:05.2]} 52... Kg7 {[%clk
0:00:04.2]} 53. Nd3 {[%clk 0:00:04.5]} 53... Bd6 {[%clk 0:00:04.7]} 54. Ke3
{[%clk 0:00:05.3]} 54... Kf6 {[%clk 0:00:04.7]} 55. Kd4 {[%clk 0:00:06]} 55...
Ke6 {[%clk 0:00:05.2]} 56. Nf4+ {[%clk 0:00:05.1]} 56... Kf7 {[%clk 0:00:05]}
57. Kd5 {[%clk 0:00:05.3]} 57... Bb8 {[%clk 0:00:05.1]} 58. Nh3 {[%clk
0:00:05.6]} 58... Ba7 {[%clk 0:00:05.3]} 59. Ke5 {[%clk 0:00:04.3]} 59... Bb8+
{[%clk 0:00:04.9]} 60. Kd5 {[%clk 0:00:04.9]} 60... Ba7 {[%clk 0:00:05.8]} 61.
Kc4 {[%clk 0:00:05.4]} 61... Bb6 {[%clk 0:00:05.9]} 62. Kd3 {[%clk 0:00:06.1]}
62... Kf6 {[%clk 0:00:06.2]} 63. Ke2 {[%clk 0:00:06.8]} 63... Bc5 {[%clk
0:00:06.8]} 64. Kf3 {[%clk 0:00:07.7]} 64... Bd6 {[%clk 0:00:07.1]} 65. Ke3
{[%clk 0:00:07.2]} 65... Bc5+ {[%clk 0:00:07.6]} 66. Kd3 {[%clk 0:00:07.9]}
66... Bb6 {[%clk 0:00:08.5]} 67. Kd2 {[%clk 0:00:05.6]} 67... Ba7 {[%clk
0:00:09.1]} 68. Ke1 {[%clk 0:00:06.5]} 68... Bc5 {[%clk 0:00:08.6]} 69. Kf1
{[%clk 0:00:07.2]} 69... Bb6 {[%clk 0:00:09.5]} 70. Kg2 {[%clk 0:00:07.8]} 70...
Ba7 {[%clk 0:00:10.4]} 71. Nf4 {[%clk 0:00:08.5]} 71... Bc5 {[%clk 0:00:09.5]}
72. Kf3 {[%clk 0:00:08.9]} 72... Bd6 {[%clk 0:00:09.9]} 73. Nd5+ {[%clk
0:00:08.7]} 73... Ke5 {[%clk 0:00:09.7]} 74. Nc3 {[%clk 0:00:07.4]} 74... Kf6
{[%clk 0:00:09.5]} 75. Nb5 {[%clk 0:00:07.2]} 75... Bc5 {[%clk 0:00:09.7]} 76.
Nc7 {[%clk 0:00:07.9]} 76... Kf7 {[%clk 0:00:09.5]} 77. Nd5 {[%clk 0:00:08.3]}
77... Ba7 {[%clk 0:00:09.6]} 78. Ke2 {[%clk 0:00:08.3]} 78... Ke6 {[%clk
0:00:10]} 79. Nf4+ {[%clk 0:00:07.9]} 79... Kf7 {[%clk 0:00:10.5]} 80. Kf3
{[%clk 0:00:08.1]} 80... Bb6 {[%clk 0:00:11]} 81. Nd3 {[%clk 0:00:08.7]} 81...
Ba7 {[%clk 0:00:11.3]} 82. Kf4 {[%clk 0:00:09.4]} 82... Bb8+ {[%clk 0:00:11.3]}
83. Kg5 {[%clk 0:00:10.1]} 83... Bd6 {[%clk 0:00:10.7]} 84. Kh6 {[%clk
0:00:10.2]} 84... Bf8+ {[%clk 0:00:10.5]} 85. Kh7 {[%clk 0:00:10]} 85... Bd6
{[%clk 0:00:10.2]} 86. Nf4 {[%clk 0:00:10.2]} 86... Bc5 {[%clk 0:00:09.9]} 87.
Nd3 {[%clk 0:00:09.6]} 87... Bd4 {[%clk 0:00:10.3]} 88. f4 {[%clk 0:00:10]}
88... Kf6 {[%clk 0:00:09.3]} 89. Kh6 {[%clk 0:00:09.6]} 89... Bc3 {[%clk
0:00:09.5]} 90. Kh7 {[%clk 0:00:07.7]} 90... Bd4 {[%clk 0:00:08.9]} 91. Kg8
{[%clk 0:00:08.4]} 91... Bc3 {[%clk 0:00:09.1]} 92. Kh8 {[%clk 0:00:06.5]} 92...
Bd4 {[%clk 0:00:08.7]} 93. Kh7 {[%clk 0:00:07.2]} 93... Bg1 {[%clk 0:00:07.5]}
94. Ne5 {[%clk 0:00:06.6]} 94... Bh2 {[%clk 0:00:06.7]} 95. Nxg6 {[%clk
0:00:06.7]} 95... Bxg3 {[%clk 0:00:07.2]} 96. Kh6 {[%clk 0:00:07.6]} 96... Be1
{[%clk 0:00:05.5]} 97. Kxh5 {[%clk 0:00:08.3]} 97... Bd2 {[%clk 0:00:05.9]} 98.
Kh6 {[%clk 0:00:08.9]} 98... Be3 {[%clk 0:00:06]} 99. h5 {[%clk 0:00:09.5]}
99... Bd2 {[%clk 0:00:06.1]} 100. Kh7 {[%clk 0:00:10.1]} 100... Kf7 {[%clk
0:00:03.8]} 101. Ne5+ {[%clk 0:00:09]} 101... Kf6 {[%clk 0:00:03.8]} 102. Nd3
{[%clk 0:00:08]} 102... Bc3 {[%clk 0:00:03.5]} 103. Kg8 {[%clk 0:00:08.1]}
103... Ke6 {[%clk 0:00:02.7]} 104. h6 {[%clk 0:00:05]} 104... Bf6 {[%clk
0:00:02.5]} 105. Kh7 {[%clk 0:00:02.1]} 105... Kd5 {[%clk 0:00:02.8]} 106. Kg6
{[%clk 0:00:02.5]} 106... Bh8 {[%clk 0:00:03.4]} 107. Kxf5 {[%clk 0:00:02.6]}
107... Kd6 {[%clk 0:00:04]} 108. Kg6 {[%clk 0:00:03.3]} 108... Ke7 {[%clk
0:00:04.2]} 109. Ne5 {[%clk 0:00:03.3]} 109... Ke6 {[%clk 0:00:04.2]} 110. Nf7
{[%clk 0:00:04]} 110... Bc3 {[%clk 0:00:03.8]} 111. f5+ {[%clk 0:00:04.9]}
111... Ke7 {[%clk 0:00:04]} 112. h7 {[%clk 0:00:05.8]} 112... Kf8 {[%clk
0:00:04.4]} 113. h8=Q+ {[%clk 0:00:05.9]} 113... Bxh8 {[%clk 0:00:05.1]} 114.
Nxh8 {[%clk 0:00:06.8]} 114... Ke7 {[%clk 0:00:06]} 115. Nf7 {[%clk 0:00:07.5]}
115... Kf8 {[%clk 0:00:06.9]} 116. Ng5 {[%clk 0:00:08.4]} 1-0